fUSD/lending_fUSD_20260518
["ID","MTS","AMOUNT","RATE_DAILY","PERIOD"]
[422536396,1779041452000,-500.0,0.00038356,2]
[422536422,1779041452000,-500.0,0.0003849,7]
[422536393,1779041452000,-500.0,0.00038356,2]
[422536395,1779041452000,-500.0,0.00038356,2]
[422536366,1779041452000,-1493.0,0.00038125,30]
[422536369,1779041452000,-1000.0,0.00038199,40]
[422536371,1779041452000,-312.2595768,0.000382,30]
[422536379,1779041452000,-646.900184,0.00038295,120]
[422536377,1779041452000,-1955.04,0.00038276,60]
[422536370,1779041452000,-280.301538,0.000382,40]
[422536368,1779041452000,-237.061755,0.00038147,40]
[422536378,1779041452000,-500.0,0.00038295,120]
[422536372,1779041452000,-312.25957678,0.000382,30]
[422536380,1779041452000,-500.0,0.00038295,120]
[422536375,1779041452000,-1916.39718334,0.000382,30]
[422536373,1779041452000,-312.25957678,0.000382,30]
[422536357,1779041452000,-1000.0,0.0003791,5]
[422536376,1779041452000,-1916.39718334,0.000382,30]
[422536387,1779041452000,-5368.91290972,0.00038305,2]
[422536388,1779041452000,-167.0,0.00038326,120]
[422536386,1779041452000,-228.7415417,0.00038295,120]
[422536389,1779041452000,-1335.0,0.00038329,120]
[422536374,1779041452000,-1916.39718335,0.000382,30]
[422536391,1779041452000,-2068.0,0.00038329,120]
[422536384,1779041452000,-500.0,0.00038295,120]
[422536383,1779041452000,-500.0,0.00038295,120]
[422536381,1779041452000,-500.0,0.00038295,120]
[422536385,1779041452000,-941.8998432,0.00038295,120]
[422536382,1779041452000,-500.0,0.00038295,120]
[422536390,1779041452000,-1335.0,0.00038329,120]
[422536392,1779041452000,-1000.0,0.00038355,15]
[422536461,1779041453000,-500.0,0.00039095,2]
[422536465,1779041453000,-270.33065,0.000391,109]
[422536457,1779041453000,-360.98,0.00039,30]
[422536463,1779041453000,-500.0,0.00039095,2]
[422536454,1779041453000,-1000.0,0.00038999,9]
[422536459,1779041453000,-1000.0,0.00039019,108]
[422536462,1779041453000,-500.0,0.00039095,2]
[422536455,1779041453000,-1000.0,0.00038999,16]
[422536456,1779041453000,-160.82,0.00039,16]
[422536466,1779041453000,-270.33066,0.000391,109]
[422536464,1779041453000,-196.35935143,0.00039095,2]
[422536460,1779041453000,-350.0,0.00039082,7]
[422536469,1779041453000,-1000.0,0.00039109,118]
[422536470,1779041453000,-174.61919141,0.0003911,7]
[422536467,1779041453000,-270.33066,0.000391,109]
[422536468,1779041453000,-270.33066,0.000391,109]
[422536478,1779041453000,-695.39793187,0.0003911,7]
[422536472,1779041453000,-181.08010149,0.0003911,7]
[422536476,1779041453000,-201.93286099,0.0003911,7]
[422536474,1779041453000,-187.78006525,0.0003911,7]
[422536477,1779041453000,-500.0,0.0003911,7]
[422536471,1779041453000,-200.0,0.0003911,7]
[422536473,1779041453000,-205.94293675,0.0003911,7]
[422536475,1779041453000,-194.72792766,0.0003911,7]
[422536449,1779041453000,-12692.223441,0.00038834,2]
[422536458,1779041453000,-247.0,0.00039,120]
[422536453,1779041453000,-1000.0,0.00038957,14]
[422536437,1779041453000,-247.0,0.000385,120]
[422536452,1779041453000,-9268.82919595,0.000389,18]
[422536427,1779041453000,-500.0,0.0003849,7]
[422536425,1779041453000,-500.0,0.0003849,7]
[422536426,1779041453000,-500.0,0.0003849,7]
[422536424,1779041453000,-500.0,0.0003849,7]
[422536438,1779041453000,-155.18,0.0003853,105]
[422536430,1779041453000,-500.0,0.0003849,7]
[422536431,1779041453000,-500.0,0.0003849,7]
[422536435,1779041453000,-300.0,0.00038499,10]
[422536441,1779041453000,-600.0,0.00038668,60]
[422536439,1779041453000,-12423.25976802,0.000386,120]
[422536432,1779041453000,-500.0,0.0003849,7]
[422536433,1779041453000,-500.0,0.0003849,7]
[422536428,1779041453000,-500.0,0.0003849,7]
[422536440,1779041453000,-1000.0,0.00038619,110]
[422536434,1779041453000,-451.51,0.0003849,7]
[422536429,1779041453000,-500.0,0.0003849,7]
[422536436,1779041453000,-82523.84034153,0.000385,2]
[422536442,1779041453000,-1300.0,0.00038668,60]
[422536446,1779041453000,-247.0,0.0003875,120]
[422536444,1779041453000,-504.0,0.00038701,14]
[422536445,1779041453000,-150.0,0.0003875,2]
[422536447,1779041453000,-167.0,0.00038769,120]
[422536448,1779041453000,-43549.0,0.000388,30]
[422536443,1779041453000,-1000.0,0.00038699,43]
[422536450,1779041453000,-468742.32155187,0.0003888,60]
[422536451,1779041453000,-2000.0,0.000389,7]
[422536483,1779041453000,-500.0,0.0003911,7]
[422536479,1779041453000,-209.40437684,0.0003911,7]
[422536487,1779041453000,-775.47832561,0.0003911,7]
[422536512,1779041453000,-964.36669259,0.0003911,7]
[422536514,1779041453000,-290.39862941,0.0003911,7]
[422536513,1779041453000,-200.0,0.0003911,7]
[422536516,1779041453000,-1000.04826021,0.0003911,7]
[422536522,1779041453000,-200.0,0.0003911,7]
[422536518,1779041453000,-301.1433787,0.0003911,7]
[422536517,1779041453000,-200.0,0.0003911,7]
[422536519,1779041453000,-500.0,0.0003911,7]
[422536520,1779041453000,-435.17460504,0.0003911,7]
[422536521,1779041453000,-500.0,0.0003911,7]
[422536523,1779041453000,-158.69877943,0.0003911,7]
[422536527,1779041453000,-209.40437684,0.0003911,7]
[422536525,1779041453000,-201.93286099,0.0003911,7]
[422536529,1779041453000,-217.15233878,0.0003911,7]
[422536524,1779041453000,-200.0,0.0003911,7]
[422536532,1779041453000,-233.51889341,0.0003911,7]
[422536528,1779041453000,-200.0,0.0003911,7]
[422536530,1779041453000,-200.0,0.0003911,7]
[422536531,1779041453000,-225.18697532,0.0003911,7]
[422536533,1779041453000,-242.15909246,0.0003911,7]
[422536535,1779041453000,-578.20924308,0.0003911,7]
[422536534,1779041453000,-251.11897888,0.0003911,7]
[422536537,1779041453000,-270.0455652,0.0003911,7]
[422536536,1779041453000,-260.4103811,0.0003911,7]
[422536490,1779041453000,-500.0,0.0003911,7]
[422536506,1779041453000,-270.0455652,0.0003911,7]
[422536509,1779041453000,-200.0,0.0003911,7]
[422536526,1779041453000,-200.0,0.0003911,7]
[422536511,1779041453000,-500.0,0.0003911,7]
[422536481,1779041453000,-721.12765535,0.0003911,7]
[422536504,1779041453000,-896.77747135,0.0003911,7]
[422536485,1779041453000,-225.18697532,0.0003911,7]
[422536484,1779041453000,-747.8093786,0.0003911,7]
[422536480,1779041453000,-500.0,0.0003911,7]
[422536482,1779041453000,-217.15233878,0.0003911,7]
[422536488,1779041453000,-233.51889341,0.0003911,7]
[422536486,1779041453000,-500.0,0.0003911,7]
[422536489,1779041453000,-201.93286099,0.0003911,7]
[422536492,1779041453000,-200.0,0.0003911,7]
[422536499,1779041453000,-500.0,0.0003911,7]
[422536498,1779041453000,-251.11897888,0.0003911,7]
[422536495,1779041453000,-500.0,0.0003911,7]
[422536491,1779041453000,-804.17102365,0.0003911,7]
[422536501,1779041453000,-200.0,0.0003911,7]
[422536508,1779041453000,-929.95823779,0.0003911,7]
[422536515,1779041453000,-500.0,0.0003911,7]
[422536510,1779041453000,-280.03725112,0.0003911,7]
[422536505,1779041453000,-200.0,0.0003911,7]
[422536494,1779041453000,-242.15909246,0.0003911,7]
[422536502,1779041453000,-260.4103811,0.0003911,7]
[422536507,1779041453000,-500.0,0.0003911,7]
[422536497,1779041453000,-200.0,0.0003911,7]
[422536500,1779041453000,-864.78058953,0.0003911,7]
[422536503,1779041453000,-500.0,0.0003911,7]
[422536496,1779041453000,-833.92535153,0.0003911,7]
[422536493,1779041453000,-242.15909246,0.0003911,7]
[422536585,1779041454000,-151.0,0.0003911,7]
[422536577,1779041454000,-151.0,0.0003911,7]
[422536584,1779041454000,-151.0,0.0003911,7]
[422536576,1779041454000,-151.0,0.0003911,7]
[422536578,1779041454000,-151.0,0.0003911,7]
[422536574,1779041454000,-272.62944185,0.0003911,7]
[422536582,1779041454000,-151.0,0.0003911,7]
[422536579,1779041454000,-151.0,0.0003911,7]
[422536575,1779041454000,-397.36864492,0.0003911,7]
[422536573,1779041454000,-262.90206542,0.0003911,7]
[422536565,1779041454000,-2682.57183977,0.0003911,7]
[422536570,1779041454000,-2991.49051684,0.0003911,7]
[422536583,1779041454000,-209.40437684,0.0003911,7]
[422536580,1779041454000,-151.0,0.0003911,7]
[422536594,1779041454000,-235.23669479,0.0003911,7]
[422536587,1779041454000,-151.0,0.0003911,7]
[422536597,1779041454000,-151.0,0.0003911,7]
[422536593,1779041454000,-365.41690447,0.0003911,7]
[422536598,1779041454000,-151.0,0.0003911,7]
[422536586,1779041454000,-217.15233878,0.0003911,7]
[422536590,1779041454000,-225.18697532,0.0003911,7]
[422536588,1779041454000,-151.0,0.0003911,7]
[422536589,1779041454000,-279.9045709,0.0003911,7]
[422536595,1779041454000,-151.0,0.0003911,7]
[422536592,1779041454000,-151.0,0.0003911,7]
[422536591,1779041454000,-151.0,0.0003911,7]
[422536596,1779041454000,-151.0,0.0003911,7]
[422536566,1779041454000,-2781.82699784,0.0003911,7]
[422536581,1779041454000,-201.93286099,0.0003911,7]
[422536567,1779041454000,-227.34163157,0.0003911,7]
[422536540,1779041454000,-280.03725112,0.0003911,7]
[422536569,1779041454000,-235.75327194,0.0003911,7]
[422536545,1779041454000,-668.65185757,0.0003911,7]
[422536542,1779041454000,-644.79446246,0.0003911,7]
[422536541,1779041454000,-290.39862941,0.0003911,7]
[422536538,1779041454000,-599.60298507,0.0003911,7]
[422536543,1779041454000,-1377.42282659,0.0003911,7]
[422536539,1779041454000,-621.78829552,0.0003911,7]
[422536544,1779041454000,-249.15724749,0.0003911,7]
[422536546,1779041454000,-1428.38747117,0.0003911,7]
[422536548,1779041454000,-693.3919763,0.0003911,7]
[422536549,1779041454000,-1481.23780761,0.0003911,7]
[422536550,1779041454000,-2080.17592889,0.0003911,7]
[422536557,1779041454000,-1651.81367706,0.0003911,7]
[422536547,1779041454000,-2005.9555727,0.0003911,7]
[422536568,1779041454000,-2884.75459676,0.0003911,7]
[422536559,1779041454000,-2319.72410669,0.0003911,7]
[422536552,1779041454000,-1536.04360649,0.0003911,7]
[422536551,1779041454000,-719.04747942,0.0003911,7]
[422536555,1779041454000,-745.65223616,0.0003911,7]
[422536556,1779041454000,-2236.95670848,0.0003911,7]
[422536553,1779041454000,-2157.14243826,0.0003911,7]
[422536554,1779041454000,-1592.87721993,0.0003911,7]
[422536561,1779041454000,-553.23941296,0.0003911,7]
[422536571,1779041454000,-244.476143,0.0003911,7]
[422536560,1779041454000,-1712.93078312,0.0003911,7]
[422536562,1779041454000,-2405.55389864,0.0003911,7]
[422536572,1779041454000,-253.52176029,0.0003911,7]
[422536563,1779041454000,-2494.55939289,0.0003911,7]
[422536564,1779041454000,-2586.85809042,0.0003911,7]
[422536558,1779041454000,-773.2413689,0.0003911,7]
[422536599,1779041454000,-151.0,0.0003911,7]
[422536620,1779041454000,-152.0,0.0003911,7]
[422536609,1779041454000,-152.0,0.0003911,7]
[422536626,1779041454000,-155.19,0.0003914,116]
[422536638,1779041454000,-284.16093732,0.00039295,11]
[422536637,1779041454000,-1000.0,0.00039293,90]
[422536646,1779041454000,-284.16093727,0.00039295,11]
[422536642,1779041454000,-284.16093727,0.00039295,11]
[422536639,1779041454000,-284.16093727,0.00039295,11]
[422536640,1779041454000,-284.16093727,0.00039295,11]
[422536644,1779041454000,-284.16093727,0.00039295,11]
[422536641,1779041454000,-284.16093727,0.00039295,11]
[422536643,1779041454000,-284.16093727,0.00039295,11]
[422536645,1779041454000,-284.16093727,0.00039295,11]
[422536647,1779041454000,-284.16093727,0.00039295,11]
[422536648,1779041454000,-160.26,0.000393,30]
[422536650,1779041454000,-1000.0,0.0003932,90]
[422536659,1779041454000,-1000.0,0.00039411,113]
[422536649,1779041454000,-500.0,0.00039311,120]
[422536660,1779041454000,-1000.0,0.00039417,90]
[422536657,1779041454000,-182.12,0.000394,19]
[422536654,1779041454000,-1000.0,0.00039399,19]
[422536651,1779041454000,-1000.0,0.00039396,30]
[422536652,1779041454000,-1000.0,0.00039399,11]
[422536653,1779041454000,-1000.0,0.00039399,46]
[422536655,1779041454000,-273.293999,0.000394,46]
[422536656,1779041454000,-267.935294,0.000394,46]
[422536658,1779041454000,-194.168,0.000394,40]
[422536662,1779041454000,-1000.0,0.00039425,90]
[422536663,1779041454000,-1000.0,0.00039426,90]
[422536661,1779041454000,-1000.0,0.00039422,90]
[422536604,1779041454000,-151.0,0.0003911,7]
[422536634,1779041454000,-1000.0,0.00039268,60]
[422536635,1779041454000,-388.19282889,0.00039269,60]
[422536622,1779041454000,-152.0,0.0003911,7]
[422536627,1779041454000,-7183.28,0.00039142,2]
[422536630,1779041454000,-3283.92,0.00039243,120]
[422536605,1779041454000,-152.0,0.0003911,7]
[422536601,1779041454000,-151.0,0.0003911,7]
[422536600,1779041454000,-151.0,0.0003911,7]
[422536608,1779041454000,-151.0,0.0003911,7]
[422536603,1779041454000,-151.0,0.0003911,7]
[422536606,1779041454000,-151.0,0.0003911,7]
[422536607,1779041454000,-152.0,0.0003911,7]
[422536621,1779041454000,-152.0,0.0003911,7]
[422536611,1779041454000,-152.0,0.0003911,7]
[422536610,1779041454000,-152.0,0.0003911,7]
[422536623,1779041454000,-237.71857448,0.0003911,7]
[422536612,1779041454000,-201.93286099,0.0003911,7]
[422536615,1779041454000,-231.54239776,0.0003911,7]
[422536602,1779041454000,-151.0,0.0003911,7]
[422536614,1779041454000,-743.50770149,0.0003911,7]
[422536617,1779041454000,-914.14542479,0.0003911,7]
[422536633,1779041454000,-3632.0,0.00039262,2]
[422536636,1779041454000,-1000.0,0.00039292,90]
[422536625,1779041454000,-402.32486405,0.0003911,7]
[422536624,1779041454000,-1000.0,0.0003911,7]
[422536629,1779041454000,-1223.0,0.0003921,2]
[422536631,1779041454000,-247.0,0.0003925,120]
[422536628,1779041454000,-350.0,0.00039157,11]
[422536619,1779041454000,-152.0,0.0003911,7]
[422536613,1779041454000,-152.0,0.0003911,7]
[422536616,1779041454000,-152.0,0.0003911,7]
[422536618,1779041454000,-152.0,0.0003911,7]
[422536632,1779041454000,-1000.0,0.0003926,90]
[422536691,1779041455000,-152.23,0.00029042,7]
[422536677,1779041455000,-205180.46737264,0.0003949,2]
[422536684,1779041455000,-476.61,0.0002863,2]
[422536686,1779041455000,-476.61,0.00028693,30]
[422536683,1779041455000,-32317.21434811,0.00014132,2]
[422536681,1779041455000,-6890.61843035,0.00014132,2]
[422536679,1779041455000,-300.0,0.0003628,2]
[422536680,1779041455000,-5625.77,0.0003949,2]
[422536678,1779041455000,-152.23,0.00028915,2]
[422536676,1779041455000,-1000.0,0.00039489,2]
[422536666,1779041455000,-150.0,0.00039444,120]
[422536674,1779041455000,-195.4909931,0.00039489,120]
[422536670,1779041455000,-1000.0,0.00039475,90]
[422536667,1779041455000,-1000.0,0.00039467,90]
[422536668,1779041455000,-1000.0,0.00039472,7]
[422536669,1779041455000,-1000.0,0.00039473,90]
[422536665,1779041455000,-1000.0,0.00039443,120]
[422536673,1779041455000,-300.0,0.00039489,10]
[422536664,1779041455000,-1000.0,0.00039436,90]
[422536672,1779041455000,-1000.0,0.00039488,10]
[422536689,1779041455000,-152.23,0.00028979,30]
[422536675,1779041455000,-500.0,0.00039489,120]
[422536685,1779041455000,-476.61,0.00028661,7]
[422536671,1779041455000,-353.0,0.00039486,10]
[422536687,1779041455000,-476.61,0.00028725,2]
[422536711,1779041455000,-76.02158646,0.00018262,2]
[422536709,1779041455000,-476.61,0.00028947,7]
[422536707,1779041455000,-476.61,0.00028883,30]
[422536708,1779041455000,-476.61,0.00028915,2]
[422536704,1779041455000,-476.61,0.0002882,2]
[422536705,1779041455000,-395.30081161,0.00028852,7]
[422536703,1779041455000,-149.14877889,0.00028788,30]
[422536706,1779041455000,-81.30918839,0.00028852,7]
[422536712,1779041455000,-479.79376198,0.00012052,2]
[422536702,1779041455000,-327.46122111,0.00028788,30]
[422536695,1779041455000,-152.23,0.00029169,30]
[422536710,1779041455000,-305.7709516,0.00028979,30]
[422536698,1779041455000,-476.61,0.00028756,7]
[422536697,1779041455000,-10844.68067478,0.0003949,2]
[422536690,1779041455000,-152.23,0.0002901,2]
[422536682,1779041455000,-311.99271213,0.00014132,2]
[422536693,1779041455000,-152.23,0.00029105,2]
[422536692,1779041455000,-152.23,0.00029074,30]
[422536688,1779041455000,-152.23,0.00028947,7]
[422536701,1779041455000,-114.42769006,0.0003949,2]
[422536700,1779041455000,-152.23,0.00029201,2]
[422536694,1779041455000,-152.23,0.00029137,7]
[422536696,1779041455000,-300.0,0.0003628,2]
[422536699,1779041455000,-10491.37210821,0.0003949,2]
[422536713,1779041456000,-2929.38243018,0.00012052,2]
[422536714,1779041553000,1102.65356767,0.00011964,3]
[422536716,1779041710000,772.26,0.00027731,120]
[422536717,1779041734000,628.42,0.00027731,120]
[422536718,1779041832000,182.35,9.425e-05,2]
[422536720,1779041998000,210.26,0.00030082,120]
[422536721,1779042130000,167.16,6.078e-05,2]
[422536725,1779042131000,167.16,9.416e-05,2]
[422536724,1779042131000,167.16,8.581e-05,2]
[422536723,1779042131000,167.16,7.747e-05,2]
[422536722,1779042131000,167.16,6.913e-05,2]
[422536726,1779042131000,167.16,0.0001025,2]
[422536727,1779042472000,1011.68140055,0.0003013,120]
[422536728,1779042542000,200.0,0.000115,4]
[422536729,1779042544000,500.0,0.000116,4]
[422536730,1779042546000,800.0,0.000117,4]
[422536731,1779042548000,1100.0,0.000118,4]
[422536732,1779042550000,1400.0,0.000119,4]
[422536733,1779042601000,1000.0,0.0001101,2]
[422536767,1779042632000,-500.0,0.00011964,2]
[422536760,1779042632000,-1370.81041315,0.00011888,2]
[422536769,1779042632000,-429.90510778,0.00011964,2]
[422536759,1779042632000,-939.87121782,0.00011865,2]
[422536763,1779042632000,-210.29933904,0.00011955,2]
[422536764,1779042632000,-151.0,0.00011962,2]
[422536765,1779042632000,-151.0,0.00011962,2]
[422536761,1779042632000,-13956.15555275,0.00011888,2]
[422536773,1779042632000,-500.0,0.00011964,2]
[422536771,1779042632000,-536.78378311,0.00011964,2]
[422536782,1779042632000,-500.0,0.00011964,2]
[422536781,1779042632000,-500.0,0.00011964,2]
[422536770,1779042632000,-500.0,0.00011964,2]
[422536776,1779042632000,-500.0,0.00011964,2]
[422536774,1779042632000,-500.0,0.00011964,2]
[422536780,1779042632000,-500.0,0.00011964,2]
[422536772,1779042632000,-500.0,0.00011964,2]
[422536757,1779042632000,-1822.46948356,0.00011865,2]
[422536762,1779042632000,-167.16,0.00011919,2]
[422536756,1779042632000,-5000.0,0.00011865,2]
[422536754,1779042632000,-3951.98254914,0.00011864,2]
[422536738,1779042632000,-167.16,0.00011084,2]
[422536741,1779042632000,-1200.0,0.00011153,2]
[422536742,1779042632000,-4716.98,0.00011154,2]
[422536740,1779042632000,-1852.42,0.00011151,2]
[422536743,1779042632000,-250.0,0.00011166,2]
[422536739,1779042632000,-200.0,0.00011151,2]
[422536755,1779042632000,-10654.05667927,0.00011864,2]
[422536753,1779042632000,-94116.99719962,0.000118,2]
[422536745,1779042632000,-250.0,0.00011281,2]
[422536748,1779042632000,-209.3,0.00011412,2]
[422536747,1779042632000,-163.72,0.0001136,2]
[422536746,1779042632000,-2000.0,0.00011301,2]
[422536749,1779042632000,-529.41,0.00011517,2]
[422536750,1779042632000,-165.94101474,0.00011741,2]
[422536752,1779042632000,-150.0,0.00011799,2]
[422536751,1779042632000,-1000.0,0.00011799,2]
[422536744,1779042632000,-2269.89,0.00011249,2]
[422536775,1779042632000,-500.0,0.00011964,2]
[422536801,1779042632000,-500.0,0.00011964,2]
[422536778,1779042632000,-150.93219783,0.00011964,2]
[422536803,1779042632000,-500.0,0.00011964,2]
[422536806,1779042632000,-628.59283311,0.00011964,2]
[422536800,1779042632000,-500.0,0.00011964,2]
[422536804,1779042632000,-500.0,0.00011964,2]
[422536807,1779042632000,-500.0,0.00011964,2]
[422536808,1779042632000,-500.0,0.00011964,2]
[422536809,1779042632000,-500.0,0.00011964,2]
[422536811,1779042632000,-500.0,0.00011964,2]
[422536812,1779042632000,-500.0,0.00011964,2]
[422536810,1779042632000,-500.0,0.00011964,2]
[422536814,1779042632000,-500.0,0.00011964,2]
[422536816,1779042632000,-500.0,0.00011964,2]
[422536815,1779042632000,-500.0,0.00011964,2]
[422536817,1779042632000,-500.0,0.00011964,2]
[422536819,1779042632000,-500.0,0.00011964,2]
[422536818,1779042632000,-500.0,0.00011964,2]
[422536779,1779042632000,-500.0,0.00011964,2]
[422536805,1779042632000,-500.0,0.00011964,2]
[422536802,1779042632000,-500.0,0.00011964,2]
[422536813,1779042632000,-500.0,0.00011964,2]
[422536798,1779042632000,-500.0,0.00011964,2]
[422536777,1779042632000,-500.0,0.00011964,2]
[422536786,1779042632000,-500.0,0.00011964,2]
[422536784,1779042632000,-500.0,0.00011964,2]
[422536795,1779042632000,-500.0,0.00011964,2]
[422536783,1779042632000,-500.0,0.00011964,2]
[422536785,1779042632000,-500.0,0.00011964,2]
[422536787,1779042632000,-500.0,0.00011964,2]
[422536789,1779042632000,-500.0,0.00011964,2]
[422536794,1779042632000,-500.0,0.00011964,2]
[422536793,1779042632000,-500.0,0.00011964,2]
[422536792,1779042632000,-500.0,0.00011964,2]
[422536788,1779042632000,-500.0,0.00011964,2]
[422536799,1779042632000,-500.0,0.00011964,2]
[422536791,1779042632000,-500.0,0.00011964,2]
[422536797,1779042632000,-500.0,0.00011964,2]
[422536796,1779042632000,-500.0,0.00011964,2]
[422536790,1779042632000,-500.0,0.00011964,2]
[422536858,1779042633000,-2236.83700701,0.00011964,2]
[422536863,1779042633000,-2236.83700701,0.00011964,2]
[422536861,1779042633000,-2236.83700701,0.00011964,2]
[422536854,1779042633000,-2236.83700701,0.00011964,2]
[422536853,1779042633000,-2236.83700701,0.00011964,2]
[422536855,1779042633000,-2236.83700701,0.00011964,2]
[422536856,1779042633000,-2236.83700701,0.00011964,2]
[422536851,1779042633000,-2236.83700701,0.00011964,2]
[422536862,1779042633000,-2236.83700701,0.00011964,2]
[422536850,1779042633000,-2236.83700701,0.00011964,2]
[422536857,1779042633000,-2236.83700701,0.00011964,2]
[422536860,1779042633000,-2236.83700701,0.00011964,2]
[422536865,1779042633000,-2236.83700701,0.00011964,2]
[422536864,1779042633000,-2236.83700701,0.00011964,2]
[422536868,1779042633000,-2236.83700701,0.00011964,2]
[422536866,1779042633000,-2236.83700701,0.00011964,2]
[422536875,1779042633000,-2236.83700701,0.00011964,2]
[422536871,1779042633000,-2236.83700701,0.00011964,2]
[422536867,1779042633000,-2236.83700701,0.00011964,2]
[422536874,1779042633000,-2236.83700701,0.00011964,2]
[422536872,1779042633000,-2236.83700701,0.00011964,2]
[422536870,1779042633000,-2236.83700701,0.00011964,2]
[422536873,1779042633000,-2236.83700701,0.00011964,2]
[422536869,1779042633000,-2236.83700701,0.00011964,2]
[422536847,1779042633000,-2236.83700701,0.00011964,2]
[422536859,1779042633000,-2236.83700701,0.00011964,2]
[422536849,1779042633000,-2236.83700701,0.00011964,2]
[422536829,1779042633000,-500.0,0.00011964,2]
[422536848,1779042633000,-2236.83700701,0.00011964,2]
[422536877,1779042633000,-2236.83700701,0.00011964,2]
[422536822,1779042633000,-500.0,0.00011964,2]
[422536828,1779042633000,-500.0,0.00011964,2]
[422536826,1779042633000,-500.0,0.00011964,2]
[422536820,1779042633000,-500.0,0.00011964,2]
[422536821,1779042633000,-452.66958628,0.00011964,2]
[422536823,1779042633000,-500.0,0.00011964,2]
[422536824,1779042633000,-500.0,0.00011964,2]
[422536825,1779042633000,-500.0,0.00011964,2]
[422536827,1779042633000,-500.0,0.00011964,2]
[422536832,1779042633000,-523.39114206,0.00011964,2]
[422536830,1779042633000,-500.0,0.00011964,2]
[422536846,1779042633000,-2236.83700701,0.00011964,2]
[422536834,1779042633000,-509.90885334,0.00011964,2]
[422536836,1779042633000,-190.43698632,0.00011964,2]
[422536835,1779042633000,-500.0,0.00011964,2]
[422536837,1779042633000,-500.0,0.00011964,2]
[422536839,1779042633000,-500.0,0.00011964,2]
[422536838,1779042633000,-500.0,0.00011964,2]
[422536840,1779042633000,-220.29864583,0.00011964,2]
[422536842,1779042633000,-500.0,0.00011964,2]
[422536843,1779042633000,-308.7609031,0.00011964,2]
[422536841,1779042633000,-500.0,0.00011964,2]
[422536852,1779042633000,-2236.83700701,0.00011964,2]
[422536844,1779042633000,-2236.83700701,0.00011964,2]
[422536845,1779042633000,-2236.83700701,0.00011964,2]
[422536833,1779042633000,-500.0,0.00011964,2]
[422536876,1779042633000,-2236.83700701,0.00011964,2]
[422536831,1779042633000,-612.26877207,0.00011964,2]
[422536880,1779042633000,-2236.83700701,0.00011964,2]
[422536907,1779042633000,-2209.55850693,0.00011964,2]
[422536911,1779042633000,-2209.55850693,0.00011964,2]
[422536914,1779042633000,-2209.55850693,0.00011964,2]
[422536919,1779042633000,-2209.55850693,0.00011964,2]
[422536921,1779042633000,-2209.55850693,0.00011964,2]
[422536920,1779042633000,-2209.55850693,0.00011964,2]
[422536912,1779042633000,-2209.55850693,0.00011964,2]
[422536913,1779042633000,-2209.55850693,0.00011964,2]
[422536918,1779042633000,-2209.55850693,0.00011964,2]
[422536915,1779042633000,-2209.55850693,0.00011964,2]
[422536916,1779042633000,-2209.55850693,0.00011964,2]
[422536922,1779042633000,-2209.55850693,0.00011964,2]
[422536908,1779042633000,-2209.55850693,0.00011964,2]
[422536934,1779042633000,-388.26124689,0.00011964,2]
[422536924,1779042633000,-2209.55850694,0.00011964,2]
[422536923,1779042633000,-2209.55850694,0.00011964,2]
[422536925,1779042633000,-2209.55850694,0.00011964,2]
[422536927,1779042633000,-2209.55850694,0.00011964,2]
[422536930,1779042633000,-2209.55850694,0.00011964,2]
[422536928,1779042633000,-2209.55850694,0.00011964,2]
[422536932,1779042633000,-500.0,0.00011964,2]
[422536929,1779042633000,-2209.55850694,0.00011964,2]
[422536933,1779042633000,-500.0,0.00011964,2]